Cogmind - Beta 12 @@@ ROGUE MODE // 2023.03.14 @ 22:35:26 Player: Cracklepappy Result: Destroyed by D-53 Grenadier with Mini Grenade Launcher Performance ------------- Evolutions (0) 0 Regions Visited (2) 400 Robots Destroyed (31) 155 Value Destroyed (735) 735 Prototype IDs (2) 40 Alien Tech Used (0) 0 Bonus (0) 0 TOTAL SCORE: 1330 Bonus ------- None Cogmind --------- Core Integrity 0/250 Matter 253/300 Energy 18/250 System Corruption 0% Temperature Cool (0) Movement Treading (160) Location -10/Mines Parts ------- > --- POWER (1) -------- Ion Engine > --- PROPULSION (2) --- Light Treads Light Treads > --- UTILITY (2) ------ Cooling System Large Storage Unit > --- WEAPON (2) ------- Shotgun > --- INVENTORY (15) --- Compact Wheel Cooling System Medium Storage Unit Large Storage Unit High-capacity Matter Pod (125) Utility Shielding Light Assault Rifle Shotgun Shotgun Light Cannon Mining Laser Heavy Hammer Peak State ------------ > --- POWER ------------ Ion Engine > --- PROPULSION ------- Light Treads Light Treads > --- UTILITY ---------- Cooling System Medium Storage Unit > --- WEAPON ----------- Shotgun Shotgun > --- INVENTORY -------- Ion Engine Compact Wheel Cooling System Large Matter Pod Assault Rifle Light Assault Rifle Shotgun EMP Blaster Mining Laser Heavy Hammer [Rating: 11] Favorites ----------- Power Ion Engine Engine Ion Engine Propulsion Light Treads Treads Light Treads Wheel Wheel Utility Medium Storage Unit Device Seismic Detector Storage Medium Storage Unit Weapon Shotgun Ballistic Gun Shotgun Launcher EMP Blaster Build | -11 -10 -10 ------- Run | Jun Mat Min Slots Evolved . | . . . Power . | . . . Propulsion . | . . . Utility . | . . . Weapon . | . . . Parts Attached 18 | 7 10 1 Power 3 | 1 2 . Engine 3 | 1 2 . Core . | . . . Reactor . | . . . Propulsion 4 | 2 2 . Treads 3 | 1 2 . Leg . | . . . Wheel 1 | 1 . . Hover . | . . . Flight . | . . . Utility 5 | 2 3 . Device 2 | 1 1 . Storage 3 | 1 2 . Processor . | . . . Hackware . | . . . Protection . | . . . Artifact . | . . . Weapon 6 | 2 3 1 Energy Gun . | . . . Energy Cannon . | . . . Ballistic Gun 5 | 2 3 . Ballistic Cannon . | . . . Launcher 1 | . . 1 Special Weapon . | . . . Impact Weapon . | . . . Slashing Weapon . | . . . Piercing Weapon . | . . . Special Melee Weapon . | . . . Unidentified Prototypes . | . . . Parts Lost 3 | . 2 1 Power . | . . . Propulsion 1 | . 1 . Utility 1 | . 1 . Weapon 1 | . . 1 Highest Loss Streak 1 | . 1 1 To Critical Strikes . | . . . Average Slot Usage (%) 97 | . 97 100 Engine 14 | . 14 14 Treads 24 | . 24 28 Wheel 2 | . 2 . Device 12 | . 12 14 Storage 14 | . 14 14 Ballistic Gun 27 | . 28 24 Naked Turns . | . . . Heaviest Build 33 | 14 33 33 Greatest Support 40 | 10 40 40 Greatest Overweight (x) 1 | 1 1 . Average Overweight (x) . | . . . Largest Inventory Capacity 15 | 8 15 15 Average Capacity 9 | 7 9 15 Most Carried 12 | 8 12 12 Average Carried 9 | 5 9 12 Final Capacity 15 | 8 15 15 Final Carried 12 | 8 12 12 Class Distribution -------------------- 84% | Mutant 15% | Scavenger-Mutant Dominant Class ---------------- Mutant | -10/Materials Mutant | -10/Mines Resources | -11 -10 -10 ----------- Run | Jun Mat Min Matter Collected 1295 | 370 925 . Remotely . | . . . Salvage Created 1071 | 181 872 18 Parts 67 | 15 52 . Haulers Intercepted 2 | . 2 . Recyclers Shooed 4 | 1 3 . Parts Field Recycled . | . . . Retrieved Matter . | . . . Parts Self-Destructed . | . . . Prevented . | . . . Kills | -11 -10 -10 ------- Run | Jun Mat Min Combat Hostiles Destroyed 19 | . 18 1 Guns 18 | . 18 . AOE 1 | . . 1 Classes Destroyed 8 | 3 4 1 Worker 2 | 1 1 . Builder 1 | . 1 . Tunneler 5 | 5 . . Hauler 2 | . 2 . Recycler 1 | 1 . . Watcher 2 | . 2 . Grunt 18 | . 18 . Assembled 1 | . . 1 Best Kill Streak 4 | 2 4 1 Combat Bots Only 3 | . 3 1 Max Kills in Single Turn 1 | 1 1 1 Gunslinging . | . . . Exploded 1 | . . 1 Melee . | . . . Uniques/NPCs Destroyed . | . . . Combat | -11 -10 -10 -------- Run | Jun Mat Min Damage Taken 1005 | . 726 279 Core 252 | . 175 77 Absorbed by Shields . | . . . Core Remaining (%) 100 | 100 . . Volleys Fired 114 | 25 83 6 Largest 2 | 2 2 1 Hottest 46 | 40 46 33 Shots Fired 222 | 50 166 6 Gun 216 | 50 166 . Cannon . | . . . Launcher 6 | . . 6 Special . | . . . Kinetic 216 | 50 166 . Thermal . | . . . Explosive . | . . . Electromagnetic 6 | . . 6 Robot Hit Streak 11 | 5 11 4 Robot Miss Streak 4 | 2 4 2 Penetration Max . | . . . Secondary Targets . | . . . Shots Hit Robots 148 | 32 112 4 Core Hits 65 | 11 48 6 Critical Kills 1 | . 1 . Critical Parts Destroyed 1 | . 1 . Critical Strikes 2 | . 2 . Destroy 2 | . 2 . Melee Attacks . | . . . Impact . | . . . Slashing . | . . . Piercing . | . . . Sneak Attacks . | . . . Combat Hostiles . | . . . Follow-up Attacks . | . . . Damage Inflicted 1863 | 328 1302 233 Guns 1630 | 328 1302 . Cannons . | . . . Explosions 233 | . . 233 Melee . | . . . Ramming . | . . . Kinetic 1630 | 328 1302 . Thermal . | . . . Explosive . | . . . Electromagnetic 233 | . . 233 Impact . | . . . Slashing . | . . . Piercing . | . . . Highest Corruption . | . . . Average Corruption . | . . . Corruption Purged . | . . . Corruption Blocked . | . . . Overload Shots . | . . . Overflow Damage 11 | . . 11 Projectiles . | . . . Explosions 11 | . . 11 Melee . | . . . Knockbacks . | . . . Impact . | . . . Kinetic . | . . . Secondary . | . . . Self-Inflicted Damage 30 | . . 30 Shots 3 | . . 3 Rammed . | . . . Targets Rammed . | . . . Kicked . | . . . Crushed . | . . . Highest Temperature 12 | . 12 . Average Temperature 7 | . 7 . Received Heat Transfer 445 | . 405 40 Siege Activations . | . . . Robots Corrupted . | . . . Combat Hostiles . | . . . Parts Fried . | . . . Impact Corruptions . | . . . Robots Melted . | . . . Combat Hostiles . | . . . Parts Melted . | . . . Heat Transferred . | . . . Parts Sabotaged . | . . . Parts Stolen . | . . . Parts Stripped . | . . . Power Chain Reactions . | . . . Missiles Intercepted . | . . . Alert | -11 -10 -10 ------- Run | Jun Mat Min Peak Influence 199 | 35 199 66 Initial 51 | . 22 51 Average 77 | 16 87 56 Maximum Alert Level . | . . . Low Security (%) 100 | 100 100 100 Level 1 . | . . . Level 2 . | . . . Level 3 . | . . . Level 4 . | . . . Level 5 . | . . . High Security . | . . . Max Security . | . . . Squads Dispatched 7 | . 7 . Investigation 5 | . 5 . Extermination . | . . . Reinforcement 2 | . 2 . Assault . | . . . Garrison . | . . . Intercept . | . . . Searches Triggered . | . . . Construction Impeded . | . . . Haulers Reinforced . | . . . Active Scanning Responses . | . . . Cargo Convoy Interrupts . | . . . Stealth | -11 -10 -10 --------- Run | Jun Mat Min Distress Signals 1 | . 1 . Communications Jammed . | . . . Distress Signals . | . . . Times Spotted 40 | . 28 12 Peak Tracking Total 10 | . 4 10 Tactical Retreats . | . . . Traps | -11 -10 -10 ------- Run | Jun Mat Min Traps Triggered 4 | . 4 . Indirectly . | . . . Trap Hack Attempts . | . . . Triggered . | . . . Disarmed . | . . . Reprogrammed . | . . . Reused . | . . . Traps Extracted . | . . . Installed . | . . . Triggered . | . . . Machines | -11 -10 -10 ---------- Run | Jun Mat Min Machines Disabled . | . . . Max in Single Turn . | . . . Machines Repaired . | . . . Machines Sabotaged . | . . . Overloaded Fab Kills . | . . . Hacking | -11 -10 -10 --------- Run | Jun Mat Min Machines Accessed 8 | . 8 . Terminals 5 | . 5 . Fabricators . | . . . Repair Stations 1 | . 1 . Recycling Units 2 | . 2 . Scanalyzers . | . . . Garrison Access . | . . . Total Hacks 18 | . 18 . Successful 6 | . 6 . Failed 11 | . 11 . Catastrophic 3 | . 3 . Database Lockouts 1 | . 1 . Manual 12 | . 12 . Terminals 12 | . 12 . Fabricators . | . . . Repair Stations 2 | . 2 . Recycling Units 4 | . 4 . Scanalyzers . | . . . Garrison Access . | . . . Terminal Hacks 2 | . 2 . Part Schematic 1 | . 1 . Prototype ID Bank 1 | . 1 . Fabricator Hacks . | . . . Repair Station Hacks 1 | . 1 . Scan Component 1 | . 1 . Recycling Unit Hacks 1 | . 1 . Retrieve Components 1 | . 1 . Scanalyzer . | . . . Garrison Access Hacks . | . . . Unauthorized Hacks 2 | . 2 . Terminals . | . . . Fabricators . | . . . Repair Stations . | . . . Recycling Units 2 | . 2 . Tunnel 2 | . 2 . Scanalyzers . | . . . Garrison Access . | . . . Data Cores Recovered . | . . . Used . | . . . Hacking Detections 7 | . 7 . Full Trace Events . | . . . Feedback Events . | . . . Feedback Blocked . | . . . Robot Schematics Acquired . | . . . Robots Built . | . . . Authchips . | . . . Time . | . . . Total Robot Build Rating . | . . . Part Schematics Acquired 1 | . 1 . Parts Built . | . . . Authchips . | . . . Time . | . . . Total Part Build Rating . | . . . Parts Repaired . | . . . Time . | . . . Parts Recycled . | . . . Recycled Matter . | . . . Retrieved Matter . | . . . Retrieved Components 9 | . 9 . Parts Scanalyzed . | . . . Part Schematics Acquired . | . . . Parts Damaged . | . . . Bothacking | -11 -10 -10 ------------ Run | Jun Mat Min Used RIF Installer . | . . . Robots Hacked . | . . . Non-combat . | . . . Combat . | . . . Robot Hacks Applied . | . . . Relay Couplers Released . | . . . Fabnet Peak Effective % . | . . . Robots Rewired . | . . . Allies Hacked . | . . . Hacks Repelled . | . . . Allies | -11 -10 -10 -------- Run | Jun Mat Min Total Allies . | . . . Largest Group . | . . . Highest-Rated Group . | . . . Highest-Rated Ally . | . . . Total Orders . | . . . Ally Attacks . | . . . Total Damage . | . . . Kills . | . . . Allies Corrupted . | . . . Allies Melted . | . . . Intel | -11 -10 -10 ------- Run | Jun Mat Min Robot Analysis Total . | . . . Derelict Logs Recovered 1 | . . 1 Drone Launches . | . . . Drone Recoveries . | . . . Exploration | -11 -10 -10 ------------- Run | Jun Mat Min Turns Passed 1638 | 220 1375 43 Spaces Moved 774 | 142 614 18 Core 3 | 3 . . Treads 489 | . 471 18 Legs . | . . . Wheels 282 | 139 143 . Hover . | . . . Flight . | . . . Fastest Speed 50 | 50 95 160 Average Speed 135 | 92 144 160 Slowest Speed 160 | 95 160 160 Overloaded Moves . | . . . Propulsion Burnouts . | . . . Robots Hopped . | . . . Cave-ins Triggered . | . . . Exploration Rate (%) 36 | 7 86 17 Regions Visited 2 Branch Regions 1 Pre-discovered Areas 2 | . 2 . Known Exits Taken . | . . . Unknown Exits Taken 2 | 1 1 . Scrap Searched . | . . . Spaces Dug . | . . . Terrain Destroyed . | . . . Melee . | . . . Projectile . | . . . AOE . | . . . Terrain Rammed . | . . . Walls Destroyed . | . . . Machines Disabled . | . . . Actions | -11 -10 -10 --------- Run | Jun Mat Min Total 1161 | 182 954 25 Wait 214 | . 214 . Move 772 | 141 613 18 Hop . | . . . Pick Up 27 | 9 18 . Fast Attach 8 | 6 2 . Attach 3 | 1 2 . Detach . | . . . Swap 7 | . 6 1 Drop 16 | . 16 . Fire 114 | 25 83 6 Melee . | . . . Ram . | . . . Kick . | . . . Crush . | . . . Escape Stasis . | . . . Rewire . | . . . Trap . | . . . Miscellaneous . | . . . Route ------- -11/Junkyard -10/Materials (discovered 3 exits: [*Mat x2] / [*Min]) -10/Mines History --------- Turn | Location | Event 32 | -11/Junkyard | Discovered new exit (range 15) 221 | -11/Junkyard | Entered Materials 313 | -10/Materials | Build established: Mutant 628 | -10/Materials | Discovered new exit (range 4) 1173 | -10/Materials | Central database locked down 1194 | -10/Materials | Discovered new exit (range 16) 1263 | -10/Materials | Core integrity fell below 50% 1561 | -10/Materials | Discovered new exit (range 12) 1596 | -10/Materials | Entered Mines 1612 | -10/Mines | Assembled infested the area 1631 | -10/Mines | Core integrity fell below 20% 1639 | -10/Mines | Destroyed by D-53 Grenadier with Mini Grenade Launcher Last Messages --------------- 01597_ T-07 Excavator is excavating. 01600_ Acquired derelict log, extracted data. Data stored: Storage entrances (x1). 01600_ T-07 Excavator is excavating. 01612_ ALERT: Infestation in the mines, dispatching Demolisher response squad. 01613_ T-07 Excavator is excavating. 01633_ as-60292 destroyed. 01633_ D-53 Grenadier unfolds itself. 01633_ as-93225 destroyed. 01633_ as-93532 destroyed. 01633_ as-97895 destroyed. 01633_ as-58256 destroyed. 01633_ as-88388 destroyed. 01635_ as-04350 destroyed. 01635_ as-19655 destroyed. 01637_ as-42715 destroyed. 01637_ as-68432 destroyed. 01637_ Destroyed Shock Absorption System. 01639_ EMP Blaster destroyed. Map ----- +----------------------------------------------------+ | ????????????????????????????????????? | | ????????????????????????????????????? | | ????????????????????????????????????? | | ????????????????????????????????????? | | ????????????????????????????????????? | | ????????????????????????????????????? | | ????????????????????????????????????? | | ????????????????????????????????????? | | ????????????????????????????????????? | | ????????????????????????????????????? | | ?????????????? ?????????????????????? | | ????????????? #????????????????????? | | ????????????? #????????????????????? | | ????????????? #???? ??????????????? | | ????????????? #??? ????????????? | | ????????????? #??? t#????????????? | | ????????????? #?? ##???????????? | | ????????????? #?# ???????????? | | ????????????# ## #????????????? | | ??????????### ###??????????? | | ??????##### ??????????? | | ??????# ?????????? | | ??????# ?????????? | | ????### d ????????? | | ????# d ????????? | | ???# % @ ????????? | | ???# #### ????????? | | ???# ## #???????????????????? | | ????????# ##??????????????????? | | ????????#### ##?????????????????? | | ???????????### #?????????????????? | | ?????????????## ##?????????????????? | | ??????????????# #??????????????????? | | ??????????????# #??????????????????? | | ??????????????# #?????????? #??????? | | ?????????????## #???????? #??????? | | ????????????## #?????? #??????? | | ???????????## #???? #??????? | | ???????????# #?? #??????? | | ???????????# ## #?????? | | ???????????# #?????? | | ???????????# ##???????????? | | ??????????# #######????????????? | | ?????????# ##??????????????????? | | ?????????# #???????????????????? | | ?????????##### #???????????????????? | | ?????????????# ???????????????????? | | ?????????????# #???????????????????? | | ??????????????#?????????????????????? | | ????????????????????????????????????? | +----------------------------------------------------+ Best States ------------- Heat Dissipation 47 Energy Generation 10 Energy Capacity 250 Matter Stores 300 Matter Capacity 300 Sight Range 16 Terrain Scan Density 10 Evasion (%) 44 Recoil Reduction 2 Item Schematics ----------------- Huge Storage Unit | -10/Materials | Hacked Robot Schematics ------------------ None Fabricated ------------ Nothing Alien Tech Used ----------------- None Achievements -------------- None Challenges ------------ None Game ------ Seed GaussTerrabombSpoofer Manual? 0 Play Time 00:21:24 Cumulative 444.1 hours Start 2023.03.14 @ 22:03:16 End 2023.03.14 @ 22:35:26 Sessions 1 Manual Loads 0 Difficulty Rogue Special Mode None Game No. 348 Rogue 348 Adventurer 0 Explorer 0 Win Type - Total 11 Types 7/2/0/0/0/0/2/0/0 Lore% 76 Gallery% 89 Achievement% 75 Wizard Run 0 Options --------- ASCII 0 Keyboard 0 Movement Numpad Keybinds 0 Fullscreen 2 Font 24/Terminus Map View 76x50 Tactical HUD 1 Map Filters NONE Filters NONE Steam 1 RUN: a92bc5be-1d9f-4c01-a3b1-95558e2fa8d8